Cogmind - Beta 13 @@@ ROGUE MODE // 2024.04.22 @ 19:36:50 Player: Oldman Pu Result: Destroyed by S-27 Virus with Autogun Performance ------------- Evolutions (4) 2000 Regions Visited (9) 1800 Robots Destroyed (108) 540 Value Destroyed (3718) 3718 Prototype IDs (20) 400 Alien Tech Used (0) 0 Bonus (395) 395 TOTAL SCORE: 8853 Bonus ------- High Alert Combat Kills 88 Follower Combat Kills 20 Aligned with FarCom 300 Friendly Fire -13 Cogmind --------- Core Integrity 0/850 Matter 296/300 Energy 275/335 System Corruption 4% Temperature Cool (-100) Movement Rolling (140) Ox4 Location -6/Factory Parts ------- > --- POWER (2) -------- Light Ion Engine Fission Core > --- PROPULSION (3) --- Wheel Wheel Wheel > --- UTILITY (6) ------ Cryofiber Web Improved Heat Sink Advanced Heat Sink High-capacity Storage Unit Improved Medium Armor Plating Improved Medium Armor Plating > --- WEAPON (4) ------- Heavy Laser Gatling Laser Gatling Laser Heavy Machine Gun > --- INVENTORY (20) --- Flexi-carbon Leg Wheel Wheel Wheel Compact Wheel Improved Heat Sink Improved Medium Armor Plating Heavy Laser Gatling Laser Gauss Rifle Peak State ------------ > --- POWER ------------ Heavy Ion Engine Reinforced Deuterium Engine > --- PROPULSION ------- Potential Leg Potential Leg > --- UTILITY ---------- Cryofiber Web Improved Heat Sink Lightpack 2.0 Improved Medium Armor Plating > --- WEAPON ----------- Advanced Beam Cannon Advanced Beam Cannon Precision Assault Rifle > --- INVENTORY -------- Improved Ion Engine Improved Ion Engine Reinforced Ion Engine Deuterium Engine Compact Wheel Improved Heat Sink Improved Heat Sink High-capacity Storage Unit Armor Integrity Analyzer Hardened Medium Armor Plating Improved Light Armor Plating Improved Light Armor Plating Improved Light Armor Plating Improved Medium Armor Plating Improved Medium Armor Plating Improved Medium Armor Plating Improved Medium Armor Plating Improved Medium Armor Plating Improved Medium Armor Plating Improved Medium Armor Plating Improved Medium Armor Plating Improved Medium Armor Plating Improved Medium Armor Plating Improved Medium Armor Plating Bomb Drone Bay Precision Beam Rifle Gatling Laser Gatling Laser Gatling Laser Gatling Laser Advanced Beam Cannon Advanced Beam Cannon Advanced Beam Cannon Advanced Beam Cannon Heavy Assault Rifle Heavy Assault Rifle Enhanced Autogun Gauss Rifle Heavy Missile Launcher [Rating: 91] Favorites ----------- Power Improved Ion Engine Engine Improved Ion Engine Power Core Light Nuclear Core Reactor Cold Fusion Reactor Propulsion Potential Leg Leg Potential Leg Wheel Wheel Utility Improved Heat Sink Device Improved Heat Sink Storage Lightpack 2.0 Protection Improved Light Armor Plating Weapon Advanced Beam Cannon Energy Gun Medium Laser Energy Cannon Advanced Beam Cannon Ballistic Gun Enhanced Autogun Launcher Heavy Missile Launcher Build | -11 -10 -10 -10 -9 -8 -7 -7 -7 -6 ------- Run | Yrd Mat Min Exi Min Mat Fac Low Low Fac Slots Evolved 8 | . . . . . 4 2 . . 2 Power 1 | . . . . . 1 . . . . Propulsion 1 | . . . . . . . . . 1 Utility 4 | . . . . . 2 2 . . . Weapon 2 | . . . . . 1 . . . 1 Parts Attached 126 | 6 10 7 5 2 36 13 2 8 37 Power 22 | 1 2 2 . . 9 2 . 1 5 Engine 16 | 1 1 1 . . 8 2 . 1 2 Core 5 | . 1 1 . . 1 . . . 2 Reactor 1 | . . . . . . . . . 1 Propulsion 20 | 2 3 2 2 . 2 1 . 1 7 Treads . | . . . . . . . . . . Leg 7 | . . . 2 . 2 1 . . 2 Wheel 13 | 2 3 2 . . . . . 1 5 Hover . | . . . . . . . . . . Flight . | . . . . . . . . . . Utility 38 | 1 3 . 3 2 5 6 . 5 13 Device 19 | . 1 . 2 2 3 3 . 1 7 Storage 6 | 1 2 . 1 . 1 . . 1 . Processor . | . . . . . . . . . . Hackware . | . . . . . . . . . . Protection 13 | . . . . . 1 3 . 3 6 Artifact . | . . . . . . . . . . Weapon 46 | 2 2 3 . . 20 4 2 1 12 Energy Gun 28 | 1 2 3 . . 13 1 . . 8 Energy Cannon 5 | . . . . . 2 . 2 1 . Ballistic Gun 11 | 1 . . . . 5 3 . . 2 Ballistic Cannon . | . . . . . . . . . . Launcher 2 | . . . . . . . . . 2 Special Weapon . | . . . . . . . . . . Impact Weapon . | . . . . . . . . . . Slashing Weapon . | . . . . . . . . . . Piercing Weapon . | . . . . . . . . . . Special Melee Weapon . | . . . . . . . . . . Unidentified Prototypes 12 | . . . 2 1 6 1 . . 2 Parts Lost 25 | . . 1 . . 1 . . . 23 Power 4 | . . . . . 1 . . . 3 Propulsion 4 | . . . . . . . . . 4 Utility 7 | . . . . . . . . . 7 Weapon 10 | . . 1 . . . . . . 9 Highest Loss Streak 22 | . . 1 . . 1 . . . 22 To Critical Strikes . | . . . . . . . . . . Average Slot Usage (%) 89 | . 99 99 100 100 80 83 84 91 89 Engine 13 | . 11 5 14 14 17 15 15 15 7 Leg 13 | . . . 6 28 17 15 15 7 13 Wheel 6 | . 28 28 21 . . . . 5 2 Device 13 | . 12 14 14 14 8 15 15 18 18 Storage 9 | . 15 14 14 14 9 7 7 6 6 Protection 3 | . . . . . . 7 7 12 12 Energy Gun 13 | . 25 27 28 28 14 . . . 7 Energy Cannon 5 | . . . . . 2 15 15 15 10 Ballistic Gun 5 | . 2 . . . 10 6 7 7 5 Naked Turns . | . . . . . . . . . . Heaviest Build 90 | 14 52 53 53 53 53 49 44 88 90 Greatest Support 60 | 26 26 20 60 60 60 60 60 30 60 Greatest Overweight (x) 25 | 2 2 2 2 . . . . 5 25 Average Overweight (x) . | . 1 2 1 . . . . 4 1 Largest Inventory Capacity 40 | 8 20 20 20 20 40 40 40 40 20 Average Capacity 30 | 6 19 20 20 20 39 40 40 19 20 Most Carried 40 | . 10 19 20 20 40 40 40 40 20 Average Carried 23 | . 6 14 19 19 26 38 40 13 17 Final Capacity 40 | 8 20 20 20 20 40 40 40 20 20 Final Carried 40 | . 9 19 19 20 38 40 40 20 10 Class Distribution -------------------- 26% | Hauler-Skirmisher 25% | Hauler-Tank 20% | Scavenger-Mutant 14% | Mutant 8% | Scavenger-Tank 4% | Tank Dominant Class ---------------- Scavenger-Mutant | -10/Materials Scavenger-Mutant | -10/Mines Scavenger-Mutant | -10/Exiles Mutant | -9/Mines Hauler-Skirmisher | -8/Materials Hauler-Tank | -7/Factory Hauler-Tank | -7/Lower Caves Scavenger-Tank | -7/Lower Caves Scavenger-Tank | -6/Factory Resources | -11 -10 -10 -10 -9 -8 -7 -7 -7 -6 ----------- Run | Yrd Mat Min Exi Min Mat Fac Low Low Fac Matter Collected 2320 | 181 377 70 . 60 671 326 63 . 572 Remotely . | . . . . . . . . . . Salvage Created 4499 | . 547 171 . 57 1802 732 149 . 1041 Parts 215 | . 23 14 . 1 77 38 7 . 55 Haulers Intercepted 9 | . 2 . . . 5 2 . . . Recyclers Shooed 4 | . 1 1 . . . 1 . . 1 Parts Field Recycled . | . . . . . . . . . . Retrieved Matter . | . . . . . . . . . . Parts Self-Destructed 7 | . . . . . . . 7 . . Prevented . | . . . . . . . . . . Kills | -11 -10 -10 -10 -9 -8 -7 -7 -7 -6 ------- Run | Yrd Mat Min Exi Min Mat Fac Low Low Fac Combat Hostiles Destroyed 88 | . 8 6 . 4 32 13 4 . 21 Guns 61 | . 8 6 . 4 31 2 2 . 8 Cannons 22 | . . . . . . 9 2 . 11 AOE 1 | . . . . . . . . . 1 Classes Destroyed 16 | . 4 3 . 1 4 1 . . 3 Worker 3 | . 2 . . . . . . . 1 Builder 2 | . . . . . . . . . 2 Tunneler 2 | . . 1 . 1 . . . . . Hauler 9 | . 2 . . . 5 2 . . . Recycler 2 | . . 1 . . . . . . 1 Mechanic 1 | . . . . . . . . . 1 Operator 1 | . . . . . 1 . . . . Watcher 4 | . 3 . . . 1 . . . . Swarmer 22 | . . 6 . . 4 3 3 . 6 Grunt 35 | . 8 . . . 18 2 . . 7 Brawler 1 | . . . . . 1 . . . . Sentry 12 | . . . . . 8 3 1 . . Specialist 1 | . . . . . . . . . 1 Hunter 7 | . . . . . 1 2 . . 4 Programmer 6 | . . . . . . 3 . . 3 Assembled 4 | . . . . 4 . . . . . Best Kill Streak 6 | . 6 4 . 4 5 3 3 . 5 Combat Bots Only 5 | . 3 3 . 4 5 3 3 . 5 Max Kills in Single Turn 2 | . 1 1 . 2 1 2 1 . 2 Gunslinging 1 | . . . . 1 . . . . . Exploded 1 | . . . . . . . . . 1 Melee . | . . . . . . . . . . Uniques/NPCs Destroyed . | . . . . . . . . . . Combat | -11 -10 -10 -10 -9 -8 -7 -7 -7 -6 -------- Run | Yrd Mat Min Exi Min Mat Fac Low Low Fac Hostile Shots Fired 657 | . 41 40 . 16 115 89 28 3 325 Missed 152 | . 10 13 . 6 20 36 13 1 53 Damage Taken 7398 | . 408 216 . 136 1362 560 194 . 4522 Core 1245 | . 141 50 . 29 146 21 . . 858 Absorbed by Shields . | . . . . . . . . . . Regen/Repaired (Parts) 177 | . . . . . 93 84 . . . Core Remaining (%) 70 | 100 . . . 12 73 . . 97 . Volleys Fired 281 | . 53 18 2 10 96 34 6 2 60 Largest 4 | . 2 2 2 2 3 3 3 3 4 Hottest 270 | . 100 100 106 106 171 164 161 161 270 Shots Fired 753 | . 106 36 4 20 278 102 18 6 183 Gun 594 | . 106 36 4 20 276 34 6 2 110 Cannon 158 | . . . . . 2 68 12 4 72 Launcher 1 | . . . . . . . . . 1 Special . | . . . . . . . . . . Kinetic 188 | . 16 . . . 86 34 6 2 44 Thermal 564 | . 90 36 4 20 192 68 12 4 138 Explosive 1 | . . . . . . . . . 1 Electromagnetic . | . . . . . . . . . . Robot Hit Streak 16 | . 13 3 . 7 16 14 5 1 16 Robot Miss Streak 7 | . 3 3 . 1 2 4 2 3 7 Penetration Max . | . . . . . . . . . . Secondary Targets 9 | . 1 3 . 1 3 . . . 1 Max Gunslinging Chain 1 | . 1 1 . 1 1 . . . 1 Shots Hit Robots 467 | . 71 18 . 15 174 63 9 1 116 Core Hits 225 | . 25 10 . 8 70 27 6 . 79 Critical Kills 3 | . . . . . 1 2 . . . Critical Parts Destroyed 1 | . . . . . . . . . 1 Critical Strikes 30 | . 6 4 . 3 14 2 . . 1 Burn 26 | . 6 4 . 3 13 . . . . Meltdown 2 | . . . . . . 2 . . . Destroy 2 | . . . . . 1 . . . 1 Melee Attacks . | . . . . . . . . . . Impact . | . . . . . . . . . . Slashing . | . . . . . . . . . . Piercing . | . . . . . . . . . . Sneak Attacks . | . . . . . . . . . . Combat Hostiles . | . . . . . . . . . . Follow-up Attacks . | . . . . . . . . . . Damage Inflicted 8560 | . 912 252 . 204 2692 1371 172 19 2938 Guns 6208 | . 912 252 . 204 2671 476 69 19 1605 Cannons 1937 | . . . . . 21 895 103 . 918 Explosions 415 | . . . . . . . . . 415 Melee . | . . . . . . . . . . Ramming . | . . . . . . . . . . Kinetic 2072 | . 162 . . . 810 476 69 19 536 Thermal 6147 | . 750 252 . 204 1882 895 103 . 2061 Explosive 341 | . . . . . . . . . 341 Electromagnetic . | . . . . . . . . . . Impact . | . . . . . . . . . . Slashing . | . . . . . . . . . . Piercing . | . . . . . . . . . . Highest Corruption 4 | . . . . . . 2 2 2 4 Average Corruption 2 | . . . . . . 1 2 2 3 Corruption Purged . | . . . . . . . . . . Corruption Blocked . | . . . . . . . . . . Effects 18 | . . . . . . 11 2 1 4 Message Errors 2 | . . . . . . . 1 . 1 Matter Fused 8 | . . . . . . 7 . . 1 Heat Flow Errors 2 | . . . . . . 2 . . . Energy Discharges 3 | . . . . . . 1 1 . 1 Parts Fused 1 | . . . . . . . . 1 . Data Loss (major) 1 | . . . . . . 1 . . . Weapon Failures 1 | . . . . . . . . . 1 Overload Shots . | . . . . . . . . . . Overflow Damage 28 | . . . . . . 10 . . 18 Projectiles 28 | . . . . . . 10 . . 18 Explosions . | . . . . . . . . . . Melee . | . . . . . . . . . . Knockbacks . | . . . . . . . . . . Impact . | . . . . . . . . . . Kinetic . | . . . . . . . . . . Secondary . | . . . . . . . . . . Self-Inflicted Damage 136 | . . . . . . . . . 136 Shots 2 | . . . . . . . . . 2 Rammed . | . . . . . . . . . . Targets Rammed . | . . . . . . . . . . Kicked . | . . . . . . . . . . Crushed . | . . . . . . . . . . Highest Temperature 599 | . 188 24 12 274 510 329 152 170 599 Average Temperature 100 | . 48 10 7 55 112 93 61 91 154 Received Heat Transfer 1313 | . 228 . . 20 675 81 12 . 297 Effects 17 | . . . . . 7 1 . . 9 Shutdowns 4 | . . . . . 4 . . . . Energy Bleed 3 | . . . . . 2 1 . . . Interference 1 | . . . . . . . . . 1 Short Circuit 1 | . . . . . . . . . 1 Damage (minor) 4 | . . . . . 1 . . . 3 Damage (major) 2 | . . . . . . . . . 2 Damage (core) 2 | . . . . . . . . . 2 Siege Activations . | . . . . . . . . . . Robots Corrupted . | . . . . . . . . . . Combat Hostiles . | . . . . . . . . . . Parts Fried . | . . . . . . . . . . Impact Corruptions . | . . . . . . . . . . Robots Melted 5 | . 1 . . . 1 2 . . 1 Combat Hostiles 4 | . . . . . 1 2 . . 1 Parts Melted 46 | . 13 5 . . 20 4 . . 4 Heat Transferred 15764 | . 2664 1036 . 777 5735 1554 185 . 3813 Parts Sabotaged . | . . . . . . . . . . Parts Stolen 2 | . . . . . . . . 2 . Parts Stripped . | . . . . . . . . . . Power Chain Reactions . | . . . . . . . . . . Alert | -11 -10 -10 -10 -9 -8 -7 -7 -7 -6 ------- Run | Yrd Mat Min Exi Min Mat Fac Low Low Fac Peak Influence 511 | . 176 147 . 20 511 303 . . 332 Initial 214 | . . 7 . . 7 214 . . 126 Average 179 | . 74 122 . 3 321 157 . . 185 Maximum Alert Level 2 | . . . . . 2 1 . . 1 Low Security (%) 53 | 100 100 100 . 100 11 44 . . 55 Level 1 38 | . . . . . 61 55 . . 44 Level 2 8 | . . . . . 27 . . . . Level 3 . | . . . . . . . . . . Level 4 . | . . . . . . . . . . Level 5 . | . . . . . . . . . . High Security . | . . . . . . . . . . Max Security . | . . . . . . . . . . Squads Dispatched 17 | . . . . . 9 7 . . 1 Investigation 6 | . . . . . 5 1 . . . Extermination 2 | . . . . . . 2 . . . Reinforcement 5 | . . . . . 3 1 . . 1 Assault 1 | . . . . . 1 . . . . Garrison 3 | . . . . . . 3 . . . Intercept . | . . . . . . . . . . Searches Triggered . | . . . . . . . . . . Construction Impeded 1 | . . . . . . . . . 1 Haulers Reinforced 1 | . . . . . . 1 . . . Active Scanning Responses . | . . . . . . . . . . Cargo Convoy Interrupts 1 | . . . . . . . . . 1 Stealth | -11 -10 -10 -10 -9 -8 -7 -7 -7 -6 --------- Run | Yrd Mat Min Exi Min Mat Fac Low Low Fac Distress Signals 4 | . 2 . . . 2 . . . . Communications Jammed . | . . . . . . . . . . Distress Signals . | . . . . . . . . . . Times Spotted 145 | . 16 6 . 21 40 18 4 4 36 Peak Tracking Total 20 | . 5 3 . 20 5 4 3 2 12 Tactical Retreats 7 | . 1 . . 3 2 1 . . . Traps | -11 -10 -10 -10 -9 -8 -7 -7 -7 -6 ------- Run | Yrd Mat Min Exi Min Mat Fac Low Low Fac Traps Triggered 2 | . . . . . 1 1 . . . Indirectly . | . . . . . . . . . . Trap Hack Attempts . | . . . . . . . . . . Triggered . | . . . . . . . . . . Disarmed . | . . . . . . . . . . Reprogrammed . | . . . . . . . . . . Reused . | . . . . . . . . . . Traps Extracted . | . . . . . . . . . . Installed . | . . . . . . . . . . Triggered . | . . . . . . . . . . Machines | -11 -10 -10 -10 -9 -8 -7 -7 -7 -6 ---------- Run | Yrd Mat Min Exi Min Mat Fac Low Low Fac Machines Disabled 2 | . . . . . 1 . . . 1 Max in Single Turn 1 | . . . . . 1 . . . 1 Garrison Access 2 | . . . . . 1 . . . 1 Machines Repaired . | . . . . . . . . . . Machines Dismantled . | . . . . . . . . . . Machines Sabotaged . | . . . . . . . . . . Overloaded Fab Kills . | . . . . . . . . . . Hacking | -11 -10 -10 -10 -9 -8 -7 -7 -7 -6 --------- Run | Yrd Mat Min Exi Min Mat Fac Low Low Fac Machines Accessed 34 | . 8 . 4 1 11 8 . . 2 Terminals 19 | . 7 . . . 6 6 . . . Fabricators 1 | . . . . . . . . . 1 Repair Stations 3 | . . . . . 2 1 . . . Recycling Units 3 | . 1 . . . 1 1 . . . Scanalyzers 2 | . . . . . 2 . . . . Garrison Access 1 | . . . . . . . . . 1 Total Hacks 119 | . 24 . 49 1 28 15 . . 2 Successful 95 | . 12 . 49 1 23 8 . . 2 Failed 24 | . 12 . . . 5 7 . . . Catastrophic 3 | . 2 . . . . 1 . . . Database Lockouts . | . . . . . . . . . . Manual 2 | . . . 1 . . 1 . . . Terminals 47 | . 21 . . . 16 10 . . . Fabricators 1 | . . . . . . . . . 1 Repair Stations 8 | . . . . . 4 4 . . . Recycling Units 5 | . 3 . . . 1 1 . . . Scanalyzers 7 | . . . . . 7 . . . . Garrison Access 1 | . . . . . . . . . 1 Terminal Hacks 76 | . 11 . 49 1 12 3 . . . Record 56 | . 1 . 49 . 4 2 . . . Prototype ID Bank 4 | . 2 . . . 2 . . . . Open Door 1 | . . . . 1 . . . . . Branch Access Points 1 | . 1 . . . . . . . . Emergency Access Points 5 | . 2 . . . 3 . . . . Terminal Index 1 | . . . . . 1 . . . . Unreport Threat 1 | . . . . . . 1 . . . Locate Traps 1 | . 1 . . . . . . . . Dispatch Records 2 | . 1 . . . 1 . . . . Maintenance Status 1 | . 1 . . . . . . . . Surveillance Status 1 | . 1 . . . . . . . . Transport Status 1 | . . . . . 1 . . . . Hauler Manifests 1 | . 1 . . . . . . . . Fabricator Hacks 1 | . . . . . . . . . 1 Build 1 | . . . . . . . . . 1 Repair Station Hacks 8 | . . . . . 4 4 . . . Scan Component 4 | . . . . . 2 2 . . . Repair 4 | . . . . . 2 2 . . . Recycling Unit Hacks 3 | . 1 . . . 1 1 . . . Report Inventory 3 | . 1 . . . 1 1 . . . Scanalyzer 6 | . . . . . 6 . . . . Insert Component 4 | . . . . . 4 . . . . Analyze 2 | . . . . . 2 . . . . Garrison Access Hacks 1 | . . . . . . . . . 1 Seal Access 1 | . . . . . . . . . 1 Unauthorized Hacks . | . . . . . . . . . . Terminals . | . . . . . . . . . . Fabricators . | . . . . . . . . . . Repair Stations . | . . . . . . . . . . Recycling Units . | . . . . . . . . . . Scanalyzers . | . . . . . . . . . . Garrison Access . | . . . . . . . . . . Data Cores Recovered 2 | . . . . . 1 1 . . . Used . | . . . . . . . . . . Hacking Detections 22 | . 7 . . . 8 7 . . . Full Trace Events 4 | . . . . . 4 . . . . Feedback Events . | . . . . . . . . . . Feedback Blocked . | . . . . . . . . . . Robot Schematics Acquired . | . . . . . . . . . . Robots Built 3 | . . . . . . . . . 3 Authchips . | . . . . . . . . . . Time 152 | . . . . . . . . . 152 Total Robot Build Rating 15 | . . . . . . . . . 15 Part Schematics Acquired 2 | . . . . . 2 . . . . Parts Built . | . . . . . . . . . . Authchips . | . . . . . . . . . . Time . | . . . . . . . . . . Total Part Build Rating . | . . . . . . . . . . Parts Repaired 4 | . . . . . 2 2 . . . Time 168 | . . . . . 76 92 . . . Parts Recycled . | . . . . . . . . . . Recycled Matter . | . . . . . . . . . . Retrieved Matter . | . . . . . . . . . . Retrieved Components . | . . . . . . . . . . Parts Scanalyzed 2 | . . . . . 2 . . . . Part Schematics Acquired 2 | . . . . . 2 . . . . Parts Damaged . | . . . . . . . . . . Bothacking | -11 -10 -10 -10 -9 -8 -7 -7 -7 -6 ------------ Run | Yrd Mat Min Exi Min Mat Fac Low Low Fac Used RIF Installer . | . . . . . . . . . . Robots Hacked . | . . . . . . . . . . Non-combat . | . . . . . . . . . . Combat . | . . . . . . . . . . Robot Hacks Applied . | . . . . . . . . . . Relay Couplers Released 4 | . . . . . 1 3 . . . Machine Destruction 1 | . . . . . 1 . . . . Programmers 3 | . . . . . . 3 . . . Fabnet Peak Effective % . | . . . . . . . . . . Robots Rewired . | . . . . . . . . . . Allies Hacked . | . . . . . . . . . . Hacks Repelled . | . . . . . . . . . . Allies | -11 -10 -10 -10 -9 -8 -7 -7 -7 -6 -------- Run | Yrd Mat Min Exi Min Mat Fac Low Low Fac Total Allies 18 | . . 3 . . . 12 . . 3 Largest Group 4 | . . 3 3 3 . 4 . . 3 Highest-Rated Group 107 | . . 40 40 40 . 107 . . 87 Highest-Rated Ally 31 | . . 16 16 16 . 31 . . 29 Total Orders . | . . . . . . . . . . Ally Attacks 15 | . . . . 4 . . . . 11 Total Damage 205 | . . . . 34 . . . . 171 Kills 1 | . . . . . . . . . 1 Allies Corrupted . | . . . . . . . . . . Allies Melted . | . . . . . . . . . . Intel | -11 -10 -10 -10 -9 -8 -7 -7 -7 -6 ------- Run | Yrd Mat Min Exi Min Mat Fac Low Low Fac Robot Analysis Total . | . . . . . . . . . . Derelict Logs Recovered 4 | . . . . 1 . . 2 1 . Drone Launches . | . . . . . . . . . . Drone Recoveries . | . . . . . . . . . . Exploration | -11 -10 -10 -10 -9 -8 -7 -7 -7 -6 ------------- Run | Yrd Mat Min Exi Min Mat Fac Low Low Fac Turns Passed 7384 | 30 888 315 582 740 1917 1495 375 185 857 Spaces Moved 5178 | 25 625 211 512 451 1356 1263 390 78 267 Core 8 | 6 . . . . . . . . 2 Treads . | . . . . . . . . . . Legs 3826 | . . . 140 451 1356 1263 390 22 204 Wheels 1344 | 19 625 211 372 . . . . 56 61 Hover . | . . . . . . . . . . Flight . | . . . . . . . . . . Fastest Speed 50 | 50 90 110 90 90 90 90 90 170 110 Average Speed 100 | 84 108 110 104 90 90 90 90 193 185 Slowest Speed 1300 | 150 110 110 170 90 90 90 90 250 1300 Overloaded Moves . | . . . . . . . . . . Propulsion Burnouts . | . . . . . . . . . . Robots Hopped . | . . . . . . . . . . Cave-ins Triggered . | . . . . . . . . . . Exploration Rate (%) 50 | 3 98 40 93 80 94 29 54 9 8 Regions Visited 9 Branch Regions 5 Pre-discovered Areas 2 | . . . 1 1 . . . . . Known Exits Taken 1 | . 1 . . . . . . . . Unknown Exits Taken 8 | 1 . 1 1 1 1 1 1 1 . Scrap Searched 5 | . . 1 . 3 . . 1 . . Spaces Dug . | . . . . . . . . . . Terrain Destroyed 24 | . . . . . . . . . 24 Melee . | . . . . . . . . . . Projectile . | . . . . . . . . . . AOE 24 | . . . . . . . . . 24 Terrain Rammed . | . . . . . . . . . . Walls Destroyed . | . . . . . . . . . . Machines Disabled . | . . . . . . . . . . Actions | -11 -10 -10 -10 -9 -8 -7 -7 -7 -6 --------- Run | Yrd Mat Min Exi Min Mat Fac Low Low Fac Total 6779 | 30 726 256 554 766 1854 1576 402 108 507 Wait 997 | . 26 12 26 296 303 206 4 . 124 Move 5169 | 24 624 210 511 450 1355 1262 389 77 267 Hop . | . . . . . . . . . . Pick Up 117 | . 7 7 2 4 39 33 . 16 9 Fast Attach 40 | 6 2 2 2 . 10 2 . 5 11 Attach 29 | . . 1 . 1 6 3 . 1 17 Detach 7 | . 1 . . . 3 1 . 2 . Swap 57 | . 8 4 3 1 20 8 2 2 9 Drop 81 | . 5 2 7 4 22 27 1 3 10 Fire 281 | . 53 18 2 10 96 34 6 2 60 Melee . | . . . . . . . . . . Ram . | . . . . . . . . . . Kick . | . . . . . . . . . . Crush . | . . . . . . . . . . Escape Stasis . | . . . . . . . . . . Rewire 1 | . . . 1 . . . . . . Trap . | . . . . . . . . . . Miscellaneous . | . . . . . . . . . . Route ------- -11/Scrapyard -10/Materials (discovered 4 exits: [*Mat x3] / *Min) -10/Mines (discovered 2 exits: [*Mat] / *Exi) -10/Exiles -9/Mines -8/Materials (discovered 5 exits: *Fac x3 / [*Sto x2]) -7/Factory (discovered 2 exits: *Fac / [*Low]) -7/Lower Caves -7/Lower Caves -6/Factory (discovered 4 exits: Fac x4) History --------- Turn | Location | Event 17 | -11/Scrapyard | Discovered new exit (range 16) 31 | -11/Scrapyard | Entered Materials 119 | -10/Materials | Discovered new exit (range 16) 418 | -10/Materials | Discovered new exit (range 16) 448 | -10/Materials | Build established: Scavenger-Mutant 522 | -10/Materials | Discovered new exit (range 11) 591 | -10/Materials | Identified exit to Mines 722 | -10/Materials | Core integrity fell below 50% 863 | -10/Materials | Discovered new exit (range 10) 919 | -10/Materials | Entered Mines 1044 | -10/Mines | Discovered new exit (range 3) 1086 | -10/Mines | Joined a pair of Derelicts in attacking an 0b10 outpost 1175 | -10/Mines | Assisted by bots powering up and referring to "LRC-V3" 1219 | -10/Mines | Deemed a non-threat by the Exiles lab entrance 1219 | -10/Mines | Discovered new exit (range 5) 1234 | -10/Mines | Entered Exiles 1234 | -10/Exiles | Accompanied by 3 allies 1270 | -10/Exiles | Met 8R-AWN 1290 | -10/Exiles | Met EX-HEX 1377 | -10/Exiles | Met EX-DEC 1396 | -10/Exiles | Visited The Gauntlet 1541 | -10/Exiles | Learned location of Zion (-6) 1577 | -10/Exiles | Met EX-BIN 1593 | -10/Exiles | Aligned with FarCom system 1594 | -10/Exiles | Given EX-Vault access code 1649 | -10/Exiles | Opened EX-Vault 1664 | -10/Exiles | Found Prototype Device 1665 | -10/Exiles | Identified Cloak of Protection 1672 | -10/Exiles | Found Prototype Storage 1674 | -10/Exiles | Found Prototype Leg 1674 | -10/Exiles | Identified Potential Leg 1678 | -10/Exiles | Found Potential Leg 1697 | -10/Exiles | Warned to stay clear of 0b10 Research branches 1797 | -10/Exiles | Discovered new exit (range 10) 1816 | -10/Exiles | Stole three prototypes: Potential Leg, Cloak of Protection, Lightpack 2.0 1816 | -10/Exiles | Entered Mines 1816 | -9/Mines | Accompanied by 3 allies 1952 | -9/Mines | Build established: Mutant 1974 | -9/Mines | Found the Drone Emporium 1982 | -9/Mines | Found Prototype Device 2282 | -9/Mines | Found a damaged Exp. Sensor Array with a note attached 2284 | -9/Mines | Found Prototype Device 2285 | -9/Mines | Identified Exp. Sensor Array 2357 | -9/Mines | Assembled infested the area 2362 | -9/Mines | Assisted by a Guerilla fighting off Assembled 2375 | -9/Mines | Core integrity fell below 20% 2431 | -9/Mines | Lost 4 allies 2493 | -9/Mines | Received a Rocket Launcher from a helpful Derelict 2545 | -9/Mines | Discovered new exit (range 4) 2556 | -9/Mines | Entered Materials 2556 | -8/Materials | Evolved 4 slots: Power x1, Utility x2, Weapon x1 2567 | -8/Materials | Identified Lightpack 2.0 2904 | -8/Materials | Build established: Hauler-Skirmisher 3247 | -8/Materials | Repaired Imp. Heat Sink 3306 | -8/Materials | Discovered new exit (range 13) 3381 | -8/Materials | Met 7R-MNS 3722 | -8/Materials | Discovered new exit (range 13) 3817 | -8/Materials | Discovered new exit (range 3) 3943 | -8/Materials | Identified Bomb Drone Bay 4312 | -8/Materials | Repaired Deuterium Engine 4328 | -8/Materials | Discovered new exit (range 16) 4466 | -8/Materials | Discovered new exit (range 9) 4473 | -8/Materials | Entered Factory 4473 | -7/Factory | Evolved 2 slots: Utility x2 4474 | -7/Factory | Caught up to 7R-MNS 4475 | -7/Factory | FarCom data flow suspended 4503 | -7/Factory | Garrison activated, responded to threat 4696 | -7/Factory | Repaired Imp. Ion Engine 4757 | -7/Factory | Repaired Prc. Beam Rifle 4822 | -7/Factory | Build established: Hauler-Tank 5400 | -7/Factory | Discovered new exit (range 15) 5456 | -7/Factory | Discovered new exit (range 16) 5968 | -7/Factory | Entered Lower Caves 6126 | -7/Lower Caves | Attracted the attention of an 0b10 checkpoint 6158 | -7/Lower Caves | Learned Factory terminal intel 6205 | -7/Lower Caves | Learned 8 Factory zone layouts 6322 | -7/Lower Caves | Discovered new exit (range 9) 6343 | -7/Lower Caves | Entered another Lower Caves area 6343 | -7/Lower Caves | Spotted X9-5TX(f) 6343 | -7/Lower Caves | Spotted UC-9WQ(f) 6344 | -7/Lower Caves | Lightpack 2.0 stolen by Master Thief 6345 | -7/Lower Caves | Encountered a Master Thief 6345 | -7/Lower Caves | Encountered a Master Thief 6346 | -7/Lower Caves | Potential Leg stolen by Master Thief 6498 | -7/Lower Caves | Learned 12 Factory zone layouts 6511 | -7/Lower Caves | Discovered new exit (range 11) 6528 | -7/Lower Caves | Entered Factory 6528 | -6/Factory | Evolved 2 slots: Propulsion x1, Weapon x1 6529 | -6/Factory | Identified exit to Factory 6530 | -6/Factory | Loaded intel: 24 terminal locations 7054 | -6/Factory | Fabricated G-50 Soldier (x3) 7158 | -6/Factory | Cargo convoy interrupted 7192 | -6/Factory | Lost 3 allies 7208 | -6/Factory | Core integrity fell below 50% 7225 | -6/Factory | Core integrity fell below 20% 7290 | -6/Factory | Lost 22 parts (3p3n7u9w) 7385 | -6/Factory | Destroyed by S-27 Virus with Autogun Last Messages --------------- 07339_ R-10 Processor collects Phase Shifter. 07342_ Acquired 33 matter. 07343_ R-10 Processor collects Imp. Heat Sink. 07343_ Acquired 55 matter. 07346_ Acquired Hvy. Machine Gun. 07348_ Acquired Imp. Heat Sink. 07354_ Acquired Flexi-carbon Leg. 07357_ H2C1K:5BJQVFIFSDEVUGFFMWMK%Q 07358_ R-10 Processor collects Terrain Scan Processor. 07358_ M-28 Smith repairs Com. Wheel. 07360_ M-28 Smith repairs Field Recycling Unit. 07361_ G-50 Soldier destroyed. 07361_ Switching to secondary target: G-50 Soldier. 07362_ M-28 Smith repairs Hpw. Tractor Beam. 07365_ G-50 Soldier destroyed. 07365_ M-28 Smith destroyed. 07369_ U-05 Engineer builds a Door. 07371_ Acquired 52 matter. 07380_ Acquired 10 matter. 07385_ S-27 Virus destroyed. Map ----- +----------------------------------------------------+ | ??????????# # # #?????????????? | | ??????#########+#### ################ ???????? | | ??????# # ??????? | | ??????# """ + ??????? | | ??????# ! ] "G" # ?????? | | ??????# " " # [ ?????? | | ??????# # = %% ?????? | | ??????# ######## #### #???????????? | | ??????# #??????# #??# #???????????? | | ??????# """"" #??????# #??# #???????????? | | ??????# """"" ! #??????# #??# #???????????? | | ??????# """ #??????# ####+#########???? | | ??????# #??????# # #???? | | ??????# #??????#! #! #???? | | ??????##############??????# # """""" #???? | | ??????????????????????????# # """""" #???? | | ??????????????????????????# # """""" #???? | | ??????????????????????????# # """""" ! #???? | | ?????????????############## %;= #???? | | ?????????????# # !%*# """""" #???? | | ?????????????# # #% """""" #???? | | ?????????????# *!#% # """""" #???? | | ?????????????# *%# % # """""" #???? | | ?????????????# !!#= # #???? | | ?????????????# =[%ss= ##############???? | | ?????????????# t @#!!% # ????????? | | ?????????????# % =# ! #??? ????????? | | ?????????????# | # #??????? ???????? | | ?????????????# # #????????????????? | | ?????????????# # #????????????????? | | ############## # #????????????????? | | # ############## #????????????????? | | # ?????????????# #????????????????? | | # ?????????????# #????????????????? | | # ?????????????# #????????????????? | | # ?????????????# % % #????????????????? | | # ?????????????# #????????????????? | | # ?????????????? ????????????????? | | # ?????????????? ????????????????? | | ??????????????????????????? ??????????????????? | | ?????????????????????????????????????????????????? | | ?????????????????????????????????????????????????? | | ?????????????????????????????????????????????????? | | ?????????????????????????????????????????????????? | | ?????????????????????????????????????????????????? | | ?????????????????????????????????????????????????? | | ?????????????????????????????????????????????????? | | ?T???????????????????????????????????????????????? | | ?????????????????????????????????????????????????? | | ?????????????????????????????????????????????????? | +----------------------------------------------------+ Best States ------------- Heat Dissipation 70 Coolant Potential 65 Energy Generation 31 Energy Capacity 665 Matter Stores 317 Matter Capacity 450 Sight Range 16 Terrain Scan Density 10 Base Temperature (-) 100 Armor Coverage 525 Evasion (%) 57 Item Schematics ----------------- Gatling Laser | -8/Materials | Scanalyzed Imp. Heat Sink | -8/Materials | Scanalyzed Robot Schematics ------------------ None Fabricated ------------ G-50 Soldier | x3 | -6/Factory | Preloaded Alien Tech Used ----------------- None Achievements -------------- None Challenges ------------ None Game ------ Seed HypercooledVortexVibroblade Manual? 0 Play Time 01:21:09 Cumulative 277.2 hours Start 2024.04.22 @ 18:14:19 End 2024.04.22 @ 19:36:50 Sessions 1 Manual Loads 0 Difficulty Rogue Special Mode None Game No. 221 Rogue 209 Adventurer 12 Explorer 0 Win Type - Total 1 Types 1/0/0/0/0/0/0/0/0 Lore% 33 Gallery% 51 Achievement% 37 Wizard Run 0 Options --------- Layout 1 ASCII 0 Keyboard 0 Movement Mouse Keybinds 0 Fullscreen 1 Font 32/SmallcapsGlow Map View 77x35 Zoom Use 0% Tactical HUD 1 Map Filters NONE Filters NONE Steam 1 RUN: 91c57231-0e5b-4f0d-9434-af1a75d358d7